[Event "IV Elllobregat Open Chess Tmnt"]
[Site "Sant Boi de Llobregat, Spain"]
[Date "2023.12.02"]
[Round "3.40"]
[White "Pranav, Anand"]
[Black "Goh, Zi Han"]
[Result "1-0"]
[TimeControl "90min/40moves + 15min/end + 30sec from move 1"]
[WhiteFideId "46626786"]
[BlackFideId "5819156"]
[WhiteElo "2520"]
[BlackElo "2333"]

1. e4 {[%clk 01:30:56]} {[%emt 00:00:02]} c5 {[%clk 01:29:33]} {[%emt
00:01:28]} 2. Nf3 {[%clk 01:31:20]} {[%emt 00:00:05]} d6 {[%clk 01:29:50]}
{[%emt 00:00:15]} 3. d4 {[%clk 01:31:46]} {[%emt 00:00:04]} cxd4 {[%clk
01:29:52]} {[%emt 00:00:27]} 4. Nxd4 {[%clk 01:32:12]} {[%emt 00:00:04]} Nf6
{[%clk 01:29:57]} {[%emt 00:00:24]} 5. Nc3 {[%clk 01:32:38]} {[%emt 00:00:05]}
a6 {[%clk 01:30:07]} {[%emt 00:00:20]} 6. Be3 {[%clk 01:33:04]} {[%emt
00:00:05]} e5 {[%clk 01:30:07]} {[%emt 00:00:30]} 7. Nb3 {[%clk 01:33:31]}
{[%emt 00:00:02]} Be6 {[%clk 01:30:09]} {[%emt 00:00:28]} 8. f3 {[%clk
01:33:49]} {[%emt 00:00:12]} h5 {[%clk 01:29:52]} {[%emt 00:00:47]} 9. Qd2
{[%clk 01:33:47]} {[%emt 00:00:32]} Nbd7 {[%clk 01:30:12]} {[%emt 00:00:10]} 10.
Nd5 {[%clk 01:34:11]} {[%emt 00:00:07]} Nxd5 {[%clk 01:28:40]} {[%emt
00:02:01]} 11. exd5 {[%clk 01:34:35]} {[%emt 00:00:06]} Bf5 {[%clk 01:29:02]}
{[%emt 00:00:08]} 12. Na5 {[%clk 01:34:40]} {[%emt 00:00:26]} Rc8 {[%clk
01:14:30]} {[%emt 00:15:02]} 13. Nxb7 {[%clk 01:20:34]} {[%emt 00:14:36]} Qc7
{[%clk 01:14:00]} {[%emt 00:00:58]} 14. Na5 {[%clk 01:20:55]} {[%emt 00:00:10]}
Qxc2 {[%clk 01:13:12]} {[%emt 00:01:18]} 15. Bxa6 {[%clk 01:10:57]} {[%emt
00:10:29]} Qxd2+ {[%clk 01:05:45]} {[%emt 00:07:56]} 16. Bxd2 {[%clk 01:10:57]}
{[%emt 00:00:30]} Rc2 {[%clk 01:05:37]} {[%emt 00:00:38]} 17. b4 {[%clk
01:02:57]} {[%emt 00:08:31]} Be7 {[%clk 01:03:24]} {[%emt 00:02:42]} 18. Bb5
{[%clk 01:00:30]} {[%emt 00:02:56]} O-O {[%clk 00:59:37]} {[%emt 00:04:18]} 19.
Ba4 {[%clk 00:59:56]} {[%emt 00:01:05]} Rc7 {[%clk 00:54:28]} {[%emt 00:05:38]}
20. O-O {[%clk 00:58:42]} {[%emt 00:01:44]} e4 {[%clk 00:43:24]} {[%emt
00:11:34]} 21. Rae1 {[%clk 00:54:43]} {[%emt 00:04:29]} Bh4 {[%clk 00:42:23]}
{[%emt 00:01:32]} 22. fxe4 {[%clk 00:50:39]} {[%emt 00:04:33]} Bxe1 {[%clk
00:42:25]} {[%emt 00:00:28]} 23. Rxe1 {[%clk 00:51:08]} {[%emt 00:00:01]} Nb6
{[%clk 00:38:53]} {[%emt 00:04:02]} 24. Bc6 {[%clk 00:49:43]} {[%emt 00:01:55]}
Bg6 {[%clk 00:37:47]} {[%emt 00:01:36]} 25. Bf4 {[%clk 00:46:13]} {[%emt
00:04:00]} Nc8 {[%clk 00:33:44]} {[%emt 00:04:33]} 26. Nc4 {[%clk 00:45:30]}
{[%emt 00:01:14]} f5 {[%clk 00:28:56]} {[%emt 00:05:18]} 27. e5 {[%clk
00:43:52]} {[%emt 00:02:07]} dxe5 {[%clk 00:28:52]} {[%emt 00:00:33]} 28. Nxe5
{[%clk 00:43:36]} {[%emt 00:00:47]} Be8 {[%clk 00:26:27]} {[%emt 00:02:55]} 29.
Ng6 {[%clk 00:43:11]} {[%emt 00:00:55]} Bxc6 {[%clk 00:24:23]} {[%emt
00:02:34]} 30. Nxf8 {[%clk 00:40:21]} {[%emt 00:03:20]} Ra7 {[%clk 00:24:27]}
{[%emt 00:00:26]} 31. dxc6 {[%clk 00:40:38]} {[%emt 00:00:13]} Kxf8 {[%clk
00:24:51]} {[%emt 00:00:06]} 32. b5 {[%clk 00:40:42]} {[%emt 00:00:27]} Rxa2
{[%clk 00:24:44]} {[%emt 00:00:35]} 33. Rb1 {[%clk 00:41:04]} {[%emt 00:00:09]}
Ra4 {[%clk 00:24:06]} {[%emt 00:01:08]} 34. b6 {[%clk 00:41:15]} {[%emt
00:00:18]} Nxb6 {[%clk 00:24:28]} {[%emt 00:00:09]} 35. Bd6+ {[%clk 00:41:34]}
{[%emt 00:00:11]} 1-0

[Event "IV Elllobregat Open Chess Tmnt"]
[Site "Sant Boi de Llobregat, Spain"]
[Date "2023.12.02"]
[Round "3.41"]
[White "Madaminov, Mukhiddin"]
[Black "Gombocz, Ferenc Jr."]
[Result "1-0"]
[TimeControl "90min/40moves + 15min/end + 30sec from move 1"]
[WhiteFideId "14210703"]
[BlackFideId "775029"]
[WhiteElo "2494"]
[BlackElo "2319"]

1. e4 {[%clk 01:29:48]} {[%emt 00:01:09]} e5 {[%clk 01:30:53]} {[%emt
00:00:09]} 2. Nf3 {[%clk 01:29:27]} {[%emt 00:00:49]} Nc6 {[%clk 01:31:14]}
{[%emt 00:00:11]} 3. Bb5 {[%clk 01:28:45]} {[%emt 00:01:10]} g6 {[%clk
01:31:28]} {[%emt 00:00:18]} 4. O-O {[%clk 01:27:01]} {[%emt 00:02:13]} Bg7
{[%clk 01:31:46]} {[%emt 00:00:14]} 5. c3 {[%clk 01:26:26]} {[%emt 00:01:03]}
a6 {[%clk 01:32:07]} {[%emt 00:00:11]} 6. Ba4 {[%clk 01:26:05]} {[%emt
00:00:49]} d6 {[%clk 01:32:31]} {[%emt 00:00:07]} 7. d4 {[%clk 01:26:24]}
{[%emt 00:00:10]} Bd7 {[%clk 01:32:56]} {[%emt 00:00:07]} 8. h3 {[%clk
01:25:49]} {[%emt 00:01:03]} Nf6 {[%clk 01:32:48]} {[%emt 00:00:39]} 9. Re1
{[%clk 01:26:07]} {[%emt 00:00:11]} O-O {[%clk 01:33:10]} {[%emt 00:00:09]} 10.
Bc2 {[%clk 01:26:30]} {[%emt 00:00:06]} Re8 {[%clk 01:31:49]} {[%emt 00:01:53]}
11. Nbd2 {[%clk 01:24:09]} {[%emt 00:02:48]} Qe7 {[%clk 01:32:01]} {[%emt
00:00:20]} 12. Nf1 {[%clk 01:22:07]} {[%emt 00:02:29]} Qf8 {[%clk 01:32:08]}
{[%emt 00:00:26]} 13. Ng3 {[%clk 01:21:37]} {[%emt 00:00:55]} Rad8 {[%clk
01:32:22]} {[%emt 00:00:20]} 14. d5 {[%clk 01:21:44]} {[%emt 00:00:22]} Ne7
{[%clk 01:28:20]} {[%emt 00:04:34]} 15. c4 {[%emt 00:01:30]} Bh6 {[%clk
01:25:25]} {[%emt 00:03:23]} 16. b4 {[%clk 01:19:20]} {[%emt 00:01:55]} Bxc1
{[%clk 01:18:55]} {[%emt 00:07:01]} 17. Rxc1 {[%clk 01:16:20]} {[%emt
00:03:29]} c6 {[%clk 01:09:24]} {[%emt 00:10:01]} 18. Bb3 {[%clk 00:57:03]}
{[%emt 00:19:47]} cxd5 {[%clk 01:04:46]} {[%emt 00:05:09]} 19. exd5 {[%clk
00:45:23]} {[%emt 00:12:10]} b5 {[%clk 01:01:54]} {[%emt 00:03:22]} 20. c5
{[%clk 00:40:22]} {[%emt 00:05:31]} dxc5 {[%clk 01:02:16]} {[%emt 00:00:08]} 21.
Rxc5 {[%clk 00:39:50]} {[%emt 00:01:01]} Nexd5 {[%clk 00:54:12]} {[%emt
00:08:35]} 22. Rxd5 {[%clk 00:33:19]} {[%emt 00:07:01]} Nxd5 {[%clk 00:54:28]}
{[%emt 00:00:14]} 23. Qxd5 {[%clk 00:33:37]} {[%emt 00:00:11]} Be6 {[%clk
00:54:44]} {[%emt 00:00:14]} 24. Qc5 {[%clk 00:32:31]} {[%emt 00:01:37]} Bxb3
{[%clk 00:47:09]} {[%emt 00:08:05]} 25. axb3 {[%clk 00:31:54]} {[%emt
00:01:07]} Qxc5 {[%clk 00:46:11]} {[%emt 00:01:28]} 26. bxc5 {[%clk 00:32:18]}
{[%emt 00:00:05]} f5 {[%clk 00:46:37]} {[%emt 00:00:05]} 27. Ne2 {[%clk
00:20:12]} {[%emt 00:12:35]} b4 {[%clk 00:43:58]} {[%emt 00:03:10]} 28. Ra1
{[%clk 00:17:22]} {[%emt 00:03:20]} Re6 {[%clk 00:38:12]} {[%emt 00:06:15]} 29.
Ra4 {[%clk 00:16:39]} {[%emt 00:01:13]} Rb8 {[%clk 00:36:50]} {[%emt 00:01:51]}
30. c6 {[%clk 00:15:25]} {[%emt 00:01:45]} Rxc6 {[%clk 00:28:32]} {[%emt
00:08:49]} 31. Nxe5 {[%clk 00:14:56]} {[%emt 00:00:57]} Rd6 {[%clk 00:28:48]}
{[%emt 00:00:13]} 32. Nf4 {[%clk 00:12:34]} {[%emt 00:02:50]} Rb5 {[%clk
00:19:55]} {[%emt 00:09:28]} 33. Nc4 {[%clk 00:12:13]} {[%emt 00:00:50]} Rd1+
{[%clk 00:11:54]} {[%emt 00:08:33]} 34. Kh2 {[%clk 00:10:59]} {[%emt 00:01:42]}
Rb1 {[%clk 00:12:17]} {[%emt 00:00:07]} 35. Rxa6 {[%clk 00:09:42]} {[%emt
00:01:48]} Rb8 {[%clk 00:11:20]} {[%emt 00:01:26]} 36. Ra7 {[%clk 00:06:02]}
{[%emt 00:04:11]} Rxb3 {[%clk 00:09:56]} {[%emt 00:01:54]} 37. Nd5 {[%clk
00:06:16]} {[%emt 00:00:15]} Rf8 {[%clk 00:09:24]} {[%emt 00:01:03]} 38. Ne5
{[%clk 00:05:06]} {[%emt 00:01:38]} Ra3 {[%clk 00:07:05]} {[%emt 00:02:51]} 39.
Rb7 {[%clk 00:05:18]} {[%emt 00:00:17]} Ra6 {[%clk 00:04:58]} {[%emt 00:02:37]}
40. Nxb4 {[%clk 00:18:01]} {[%emt 00:02:47]} Rd6 {[%clk 00:18:45]} {[%emt
00:01:42]} 41. Nbc6 {[%clk 00:15:07]} {[%emt 00:03:25]} f4 {[%clk 00:17:55]}
{[%emt 00:01:20]} 42. h4 {[%clk 00:13:22]} {[%emt 00:02:15]} Re6 {[%clk
00:16:54]} {[%emt 00:01:32]} 43. Rc7 {[%clk 00:12:46]} {[%emt 00:01:06]} Rff6
{[%clk 00:11:26]} {[%emt 00:05:56]} 44. Kh3 {[%clk 00:10:49]} {[%emt 00:02:28]}
Kh8 {[%clk 00:08:47]} {[%emt 00:03:10]} 45. Kg4 {[%clk 00:10:35]} {[%emt
00:00:44]} Rf5 {[%clk 00:08:14]} {[%emt 00:01:03]} 46. Nxg6+ {[%clk 00:07:10]}
{[%emt 00:03:55]} hxg6 {[%clk 00:08:14]} {[%emt 00:00:30]} 47. Nd4 {[%clk
00:07:28]} {[%emt 00:00:10]} Ref6 {[%clk 00:05:35]} {[%emt 00:03:10]} 48. Nxf5
{[%clk 00:07:43]} {[%emt 00:00:15]} Rxf5 {[%clk 00:06:00]} {[%emt 00:00:06]} 49.
f3 {[%clk 00:07:36]} {[%emt 00:00:37]} Kg8 {[%clk 00:05:31]} {[%emt 00:00:59]}
50. Rc4 {[%clk 00:07:54]} {[%emt 00:00:12]} Kg7 {[%clk 00:05:39]} {[%emt
00:00:21]} 51. Rxf4 {[%clk 00:08:19]} {[%emt 00:00:05]} Rc5 {[%clk 00:05:28]}
{[%emt 00:00:41]} 52. g3 {[%clk 00:08:45]} {[%emt 00:00:05]} Rd5 {[%clk
00:05:01]} {[%emt 00:00:56]} 53. Re4 {[%clk 00:09:10]} {[%emt 00:00:06]} Kf6
{[%clk 00:04:34]} {[%emt 00:00:56]} 54. f4 {[%clk 00:09:35]} {[%emt 00:00:04]}
Ra5 {[%clk 00:04:30]} {[%emt 00:00:36]} 55. Re5 {[%clk 00:10:00]} {[%emt
00:00:05]} Ra3 {[%clk 00:04:56]} {[%emt 00:00:04]} 56. h5 {[%clk 00:10:23]}
{[%emt 00:00:06]} gxh5+ {[%clk 00:05:22]} {[%emt 00:00:04]} 57. Rxh5 {[%clk
00:10:48]} {[%emt 00:00:05]} Kg6 {[%clk 00:05:47]} {[%emt 00:00:05]} 58. Rb5
{[%clk 00:11:02]} {[%emt 00:00:15]} Ra6 {[%clk 00:05:58]} {[%emt 00:00:21]} 59.
f5+ {[%clk 00:11:26]} {[%emt 00:00:05]} Kf6 {[%clk 00:06:24]} {[%emt 00:00:05]}
60. Rb4 {[%clk 00:11:53]} {[%emt 00:00:03]} 1-0

[Event "IV Elllobregat Open Chess Tmnt"]
[Site "Sant Boi de Llobregat, Spain"]
[Date "2023.12.02"]
[Round "3.42"]
[White "Jerez Perez, Alfonso"]
[Black "Kaasen, Tor Fredrik"]
[Result "1/2-1/2"]
[TimeControl "90min/40moves + 15min/end + 30sec from move 1"]
[WhiteFideId "2204100"]
[BlackFideId "1516647"]
[WhiteElo "2350"]
[BlackElo "2471"]

1. e4 {[%clk 01:30:24]} {[%emt 00:00:35]} e6 {[%clk 01:29:10]} {[%emt
00:01:40]} 2. d4 {[%clk 01:30:08]} {[%emt 00:00:56]} d5 {[%clk 01:29:23]}
{[%emt 00:00:17]} 3. e5 {[%clk 01:30:10]} {[%emt 00:00:29]} c5 {[%clk
01:29:16]} {[%emt 00:00:33]} 4. c3 {[%clk 01:30:37]} {[%emt 00:00:07]} Nc6
{[%clk 01:29:22]} {[%emt 00:00:23]} 5. Nf3 {[%clk 01:30:59]} {[%emt 00:00:08]}
Qb6 {[%clk 01:28:52]} {[%emt 00:01:01]} 6. a3 {[%clk 01:30:54]} {[%emt
00:00:36]} Nh6 {[%clk 01:25:53]} {[%emt 00:03:28]} 7. b4 {[%clk 01:28:21]}
{[%emt 00:03:03]} cxd4 {[%clk 01:25:48]} {[%emt 00:00:35]} 8. Bxh6 {[%clk
01:23:44]} {[%emt 00:05:07]} gxh6 {[%clk 01:25:39]} {[%emt 00:00:38]} 9. cxd4
{[%clk 01:24:10]} {[%emt 00:00:04]} Rg8 {[%clk 01:24:40]} {[%emt 00:01:28]} 10.
Nc3 {[%clk 01:22:45]} {[%emt 00:01:56]} Bd7 {[%clk 01:22:22]} {[%emt 00:02:48]}
11. Na4 {[%clk 01:18:26]} {[%emt 00:04:50]} Qd8 {[%clk 01:18:56]} {[%emt
00:03:55]} 12. g3 {[%clk 01:01:30]} {[%emt 00:17:27]} Rc8 {[%clk 00:50:13]}
{[%emt 00:29:12]} 13. Bd3 {[%clk 00:51:17]} {[%emt 00:10:43]} a5 {[%clk
00:42:30]} {[%emt 00:08:14]} 14. b5 {[%clk 00:50:02]} {[%emt 00:01:45]} Na7
{[%clk 00:42:46]} {[%emt 00:00:14]} 15. Qb3 {[%clk 00:45:46]} {[%emt 00:04:47]}
Rc4 {[%clk 00:41:23]} {[%emt 00:01:52]} 16. Nc3 {[%clk 00:35:45]} {[%emt
00:10:32]} Nxb5 {[%clk 00:31:02]} {[%emt 00:10:50]} 17. Nxb5 {[%clk 00:26:23]}
{[%emt 00:09:52]} a4 {[%clk 00:31:27]} {[%emt 00:00:06]} 18. Qb2 {[%clk
00:23:57]} {[%emt 00:02:55]} Qa5+ {[%clk 00:31:46]} {[%emt 00:00:11]} 19. Nd2
{[%clk 00:19:37]} {[%emt 00:04:49]} Bxb5 {[%clk 00:29:48]} {[%emt 00:02:29]} 20.
O-O {[%clk 00:18:59]} {[%emt 00:01:06]} Ba6 {[%clk 00:26:17]} {[%emt 00:04:03]}
21. Nxc4 {[%clk 00:17:36]} {[%emt 00:01:53]} dxc4 {[%clk 00:26:23]} {[%emt
00:00:22]} 22. Be4 {[%clk 00:18:00]} {[%emt 00:00:08]} c3 {[%clk 00:20:52]}
{[%emt 00:06:01]} 23. Qb1 {[%clk 00:17:56]} {[%emt 00:00:34]} Bxf1 {[%clk
00:11:18]} {[%emt 00:10:04]} 24. Qxb7 {[%clk 00:13:13]} {[%emt 00:05:12]} Be7
{[%clk 00:10:32]} {[%emt 00:01:17]} 25. Kxf1 {[%clk 00:09:51]} {[%emt
00:03:52]} Kf8 {[%clk 00:10:46]} {[%emt 00:00:16]} 26. Rb1 {[%clk 00:02:51]}
{[%emt 00:07:30]} Bxa3 {[%clk 00:07:53]} {[%emt 00:03:23]} 27. d5 {[%clk
00:01:02]} {[%emt 00:02:19]} c2 {[%clk 00:06:26]} {[%emt 00:01:57]} 28. Bxc2
{[%clk 00:01:00]} {[%emt 00:00:32]} Qxd5 {[%clk 00:06:33]} {[%emt 00:00:23]} 29.
Qxd5 {[%clk 00:01:21]} {[%emt 00:00:10]} exd5 {[%clk 00:06:57]} {[%emt
00:00:04]} 30. Rb8+ {[%clk 00:01:45]} {[%emt 00:00:06]} Kg7 {[%clk 00:07:23]}
{[%emt 00:00:05]} 31. Rxg8+ {[%clk 00:02:12]} {[%emt 00:00:02]} 1/2-1/2

[Event "IV Elllobregat Open Chess Tmnt"]
[Site "Sant Boi de Llobregat, Spain"]
[Date "2023.12.02"]
[Round "3.43"]
[White "Hulka, Valentyn"]
[Black "Martinez Ramirez, Lennis"]
[Result "1-0"]
[TimeControl "90min/40moves + 15min/end + 30sec from move 1"]
[WhiteFideId "34107061"]
[BlackFideId "3509079"]
[WhiteElo "2310"]
[BlackElo "2461"]

1. d4 {[%clk 01:30:57]} {[%emt 00:00:02]} Nf6 {[%clk 01:24:28]} {[%emt
00:06:32]} 2. c4 {[%clk 01:31:06]} {[%emt 00:00:21]} e6 {[%clk 01:24:26]}
{[%emt 00:00:32]} 3. Nf3 {[%emt 00:01:10]} c5 {[%clk 01:24:00]} 4. d5 {[%clk
01:30:57]} {[%emt 00:00:55]} exd5 {[%clk 01:23:14]} {[%emt 00:01:16]} 5. cxd5
{[%clk 01:31:21]} {[%emt 00:00:07]} d6 {[%clk 01:23:25]} {[%emt 00:00:18]} 6.
Nc3 {[%clk 01:31:21]} {[%emt 00:00:30]} g6 {[%clk 01:23:23]} {[%emt 00:00:32]}
7. e4 {[%clk 01:28:29]} {[%emt 00:03:22]} a6 {[%clk 01:23:16]} {[%emt
00:00:38]} 8. a4 {[%clk 01:19:52]} {[%emt 00:09:06]} Bg4 {[%clk 01:23:31]}
{[%emt 00:00:15]} 9. Be2 {[%clk 01:09:29]} {[%emt 00:10:53]} Bg7 {[%clk
01:19:23]} {[%emt 00:04:39]} 10. Nd2 {[%clk 01:04:46]} {[%emt 00:05:13]} Bxe2
{[%clk 01:19:40]} {[%emt 00:00:13]} 11. Qxe2 {[%clk 01:05:11]} {[%emt
00:00:04]} O-O {[%clk 01:19:54]} {[%emt 00:00:16]} 12. Nc4 {[%clk 01:03:00]}
{[%emt 00:02:41]} b6 {[%clk 01:11:27]} {[%emt 00:08:59]} 13. O-O {[%clk
00:54:59]} {[%emt 00:08:28]} Ra7 {[%clk 01:08:54]} {[%emt 00:03:05]} 14. Ra3
{[%clk 00:51:40]} {[%emt 00:03:47]} Ne8 {[%clk 01:04:04]} {[%emt 00:05:22]} 15.
Rb3 {[%clk 00:48:25]} {[%emt 00:03:45]} Nd7 {[%clk 01:03:21]} {[%emt 00:01:13]}
16. Bf4 {[%clk 00:48:31]} {[%emt 00:00:24]} Qc7 {[%clk 01:03:22]} {[%emt
00:00:29]} 17. Re1 {[%clk 00:47:50]} {[%emt 00:01:12]} Rb7 {[%clk 01:02:18]}
{[%emt 00:01:33]} 18. h3 {[%clk 00:45:06]} {[%emt 00:03:14]} Bd4 {[%clk
00:55:15]} {[%emt 00:07:33]} 19. Bg3 {[%clk 00:31:51]} {[%emt 00:13:45]} Ne5
{[%clk 00:47:26]} {[%emt 00:08:19]} 20. Nxe5 {[%clk 00:29:05]} {[%emt
00:03:16]} dxe5 {[%clk 00:47:29]} {[%emt 00:00:27]} 21. Qxa6 {[%clk 00:29:14]}
{[%emt 00:00:21]} Nd6 {[%clk 00:47:48]} {[%emt 00:00:10]} 22. Nb5 {[%clk
00:27:44]} {[%emt 00:02:00]} Nxb5 {[%clk 00:48:04]} {[%emt 00:00:14]} 23. Qxb5
{[%clk 00:26:37]} {[%emt 00:01:38]} Ra8 {[%clk 00:47:28]} {[%emt 00:01:06]} 24.
Qc4 {[%clk 00:21:19]} {[%emt 00:05:48]} Rba7 {[%clk 00:37:28]} {[%emt
00:10:30]} 25. Ra1 {[%clk 00:21:08]} {[%emt 00:00:41]} Qd8 {[%clk 00:35:54]}
{[%emt 00:02:04]} 26. Kh1 {[%clk 00:19:10]} {[%emt 00:02:27]} h5 {[%clk
00:36:24]} 27. Bh2 {[%clk 00:18:12]} {[%emt 00:01:28]} Bxf2 {[%clk 00:36:38]}
{[%emt 00:00:17]} 28. Bxe5 {[%clk 00:18:11]} {[%emt 00:00:31]} Qe8 {[%clk
00:36:50]} {[%emt 00:00:18]} 29. Bc3 {[%clk 00:10:01]} {[%emt 00:08:40]} Rxa4
{[%clk 00:36:17]} {[%emt 00:01:03]} 30. Rba3 {[%clk 00:10:09]} {[%emt
00:00:22]} b5 {[%clk 00:24:01]} {[%emt 00:12:46]} 31. Qe2 {[%clk 00:10:14]}
{[%emt 00:00:24]} Bd4 {[%clk 00:22:55]} {[%emt 00:01:36]} 32. Rxa4 {[%clk
00:10:26]} {[%emt 00:00:19]} bxa4 {[%clk 00:23:19]} {[%emt 00:00:06]} 33. Bxd4
{[%clk 00:08:54]} {[%emt 00:02:01]} cxd4 {[%clk 00:23:43]} {[%emt 00:00:06]} 34.
Qd3 {[%clk 00:09:13]} {[%emt 00:00:11]} Qe5 {[%clk 00:19:39]} {[%emt 00:04:34]}
35. Rd1 {[%clk 00:09:29]} {[%emt 00:00:14]} a3 {[%clk 00:19:59]} {[%emt
00:00:11]} 36. bxa3 {[%clk 00:09:40]} {[%emt 00:00:19]} Ra4 {[%clk 00:20:23]}
{[%emt 00:00:06]} 37. Qb3 {[%clk 00:09:54]} {[%emt 00:00:15]} Ra8 {[%clk
00:20:19]} {[%emt 00:00:34]} 38. Qd3 {[%clk 00:10:06]} {[%emt 00:00:18]} Ra4
{[%clk 00:19:22]} {[%emt 00:01:28]} 39. Qb3 {[%clk 00:10:31]} {[%emt 00:00:04]}
Ra8 {[%clk 00:15:47]} {[%emt 00:04:05]} 40. Qb4 {[%clk 00:20:17]} {[%emt
00:05:44]} Qxe4 {[%clk 00:30:30]} {[%emt 00:00:48]} 41. d6 {[%clk 00:20:05]}
{[%emt 00:00:42]} Qe3 {[%clk 00:23:23]} {[%emt 00:07:36]} 42. d7 {[%clk
00:18:48]} {[%emt 00:01:48]} Rd8 {[%clk 00:10:17]} {[%emt 00:13:36]} 43. Re1
{[%clk 00:17:58]} {[%emt 00:01:19]} Qf2 {[%clk 00:07:54]} {[%emt 00:02:54]} 44.
Re8+ {[%clk 00:15:42]} {[%emt 00:02:45]} Kh7 {[%clk 00:08:06]} {[%emt
00:00:18]} 45. Qd6 {[%clk 00:13:42]} {[%emt 00:02:30]} Rxd7 {[%clk 00:00:48]}
{[%emt 00:07:49]} 46. Qxd7 {[%clk 00:14:04]} {[%emt 00:00:07]} Qf1+ {[%clk
00:01:14]} {[%emt 00:00:04]} 47. Kh2 {[%clk 00:14:29]} {[%emt 00:00:05]} Qf4+
{[%clk 00:01:34]} {[%emt 00:00:10]} 48. Kg1 {[%clk 00:14:56]} {[%emt 00:00:03]}
Qc1+ {[%clk 00:01:50]} {[%emt 00:00:14]} 49. Kf2 {[%clk 00:15:19]} {[%emt
00:00:07]} Qd2+ {[%emt 00:01:50]} 50. Re2 {[%clk 00:15:09]} {[%emt 00:00:39]}
Qf4+ {[%clk 00:00:50]} {[%emt 00:00:11]} 51. Kg1 {[%clk 00:15:35]} {[%emt
00:00:04]} Qc1+ {[%clk 00:01:16]} {[%emt 00:00:04]} 52. Kh2 {[%clk 00:15:57]}
{[%emt 00:00:07]} Qf4+ {[%clk 00:01:35]} {[%emt 00:00:13]} 53. g3 {[%clk
00:16:14]} {[%emt 00:00:12]} Qf3 {[%clk 00:01:48]} {[%emt 00:00:17]} 54. Rg2
{[%clk 00:16:29]} {[%emt 00:00:15]} h4 {[%clk 00:02:14]} {[%emt 00:00:05]} 55.
Qxd4 {[%clk 00:16:43]} {[%emt 00:00:16]} hxg3+ {[%clk 00:02:43]} {[%emt
00:00:01]} 56. Rxg3 {[%clk 00:17:03]} {[%emt 00:00:09]} Qf2+ {[%clk 00:01:48]}
{[%emt 00:01:26]} 57. Qxf2 {[%clk 00:17:31]} {[%emt 00:00:02]} 1-0